[Event "December 5 Early 2023"]
[Site "https://www.chess.com"]
[Date "2023.12.05"]
[Round "3"]
[White "Kokoszczynski, Jan"]
[Black "1mbl4"]
[Result "0-1"]
[Board "104"]
[TimeControl "180+1"]
[WhiteFideId "1174460"]
[WhiteElo "2662"]
[BlackElo "2481"]
[WhiteTeam "POL"]
[WhiteClock "0:00:02"]
[BlackClock "0:00:06"]

1. e4 {[%clk 0:03:00]}  c5 {[%clk 0:03:00]} 2. Nf3 {[%clk 0:03:00]}  Nc6 {[%clk 0:03:00]} 3. d4 {[%clk 0:02:58]}  cxd4 {[%clk 0:03:01]} 4. Nxd4 {[%clk 0:02:59]}  g6 {[%clk 0:03:02]} 5. c4 {[%clk 0:02:59]}  Bg7 {[%clk 0:03:02]} 6. Be3 {[%clk 0:03:00]}  Qb6 {[%clk 0:03:03]} 7. Nb3 {[%clk 0:02:59]}  Qd8 {[%clk 0:03:03]} 8. Qd2 {[%clk 0:02:59]}  Nf6 {[%clk 0:03:03]} 9. Nc3 {[%clk 0:02:59]}  O-O {[%clk 0:03:03]} 10. Be2 {[%clk 0:02:59]}  d6 {[%clk 0:03:04]} 11. h3 {[%clk 0:02:56]}  Be6 {[%clk 0:03:04]} 12. O-O {[%clk 0:02:55]}  Rc8 {[%clk 0:03:01]} 13. Rac1 {[%clk 0:02:54]}  Ne5 {[%clk 0:02:59]} 14. c5 {[%clk 0:02:12]}  Nc4 {[%clk 0:02:35]} 15. Bxc4 {[%clk 0:02:03]}  Bxc4 {[%clk 0:02:36]} 16. Rfd1 {[%clk 0:02:03]}  Re8 {[%clk 0:02:06]} 17. cxd6 {[%clk 0:01:43]}  exd6 {[%clk 0:02:05]} 18. f3 {[%clk 0:01:39]}  d5 {[%clk 0:01:43]} 19. Nxd5 {[%clk 0:01:13]}  Nxd5 {[%clk 0:01:42]} 20. exd5 {[%clk 0:01:12]}  Qd6 {[%clk 0:00:58]} 21. Bf2 {[%clk 0:00:45]}  b6 {[%clk 0:00:51]} 22. Rc2 {[%clk 0:00:35]}  Qd7 {[%clk 0:00:39]} 23. d6 {[%clk 0:00:31]}  Re2 {[%clk 0:00:38]} 24. Qxe2 {[%clk 0:00:07]}  Bxe2 {[%clk 0:00:36]} 25. Rxe2 {[%clk 0:00:08]}  Bf6 {[%clk 0:00:34]} 26. Red2 {[%clk 0:00:08]}  Kg7 {[%clk 0:00:33]} 27. Nd4 {[%clk 0:00:07]}  h5 {[%clk 0:00:25]} 28. Ne2 {[%clk 0:00:08]}  Be5 {[%clk 0:00:21]} 29. Nc3 {[%clk 0:00:07]}  Rc6 {[%clk 0:00:20]} 30. Nb5 {[%clk 0:00:06]}  a6 {[%clk 0:00:20]} 31. Nc3 {[%clk 0:00:03]}  Kh7 {[%clk 0:00:18]} 32. Ne4 {[%clk 0:00:02]}  f5 {[%clk 0:00:18]} 33. Ng5+ {[%clk 0:00:02]}  Kh6 {[%clk 0:00:19]} 34. h4 {[%clk 0:00:03]}  Kg7 {[%clk 0:00:18]} 35. Kh1 {[%clk 0:00:03]}  b5 {[%clk 0:00:14]} 36. Bd4 {[%clk 0:00:03]}  Bxd4 {[%clk 0:00:14]} 37. Rxd4 {[%clk 0:00:04]}  Kf6 {[%clk 0:00:13]} 38. R4d2 {[%clk 0:00:04]}  b4 {[%clk 0:00:13]} 39. Nh3 {[%clk 0:00:04]}  a5 {[%clk 0:00:12]} 40. Nf4 {[%clk 0:00:05]}  Rc4 {[%clk 0:00:11]} 41. Ne2 {[%clk 0:00:04]}  Rxh4+ {[%clk 0:00:10]} 42. Kg1 {[%clk 0:00:05]}  Qa7+ {[%clk 0:00:11]} 43. Nd4 {[%clk 0:00:05]}  Qd7 {[%clk 0:00:07]} 44. g3 {[%clk 0:00:05]}  Qxd6 {[%clk 0:00:06]} 45. gxh4 {[%clk 0:00:05]}  Qg3+ {[%clk 0:00:07]} 46. Kf1 {[%clk 0:00:05]}  Qxh4 {[%clk 0:00:07]} 47. b3 {[%clk 0:00:06]}  Qh1+ {[%clk 0:00:07]} 48. Ke2 {[%clk 0:00:06]}  Qg2+ {[%clk 0:00:07]} 49. Kd3 {[%clk 0:00:07]}  Qg3 {[%clk 0:00:07]} 50. Re2 {[%clk 0:00:06]}  h4 {[%clk 0:00:07]} 51. Re6+ {[%clk 0:00:06]}  Kg7 {[%clk 0:00:07]} 52. Rc1 {[%clk 0:00:06]}  h3 {[%clk 0:00:07]} 53. Rc7+ {[%clk 0:00:05]}  Kh6 {[%clk 0:00:07]} 54. Ree7 {[%clk 0:00:05]}  Kg5 {[%clk 0:00:07]} 55. Rh7 {[%clk 0:00:04]}  Qg2 {[%clk 0:00:07]} 56. Ne6+ {[%clk 0:00:04]}  Kf6 {[%clk 0:00:07]} 57. Nf4 {[%clk 0:00:04]}  Qf1+ {[%clk 0:00:07]} 58. Ke3 {[%clk 0:00:04]}  Qe1+ {[%clk 0:00:07]} 59. Ne2 {[%clk 0:00:05]}  Qf1 {[%clk 0:00:05]} 60. Rc6+ {[%clk 0:00:05]}  Ke5 {[%clk 0:00:04]} 61. Re7+ {[%clk 0:00:03]}  Kd5 {[%clk 0:00:04]} 62. Rcc7 {[%clk 0:00:03]}  h2 {[%clk 0:00:04]} 63. Nf4+ {[%clk 0:00:04]}  Kd6 {[%clk 0:00:04]} 64. Red7+ {[%clk 0:00:04]}  Ke5 {[%clk 0:00:04]} 65. Rd5+ {[%clk 0:00:03]}  Kf6 {[%clk 0:00:04]} 66. Rc6+ {[%clk 0:00:04]}  Kg7 {[%clk 0:00:04]} 67. Rxg6+ {[%clk 0:00:04]}  Kh7 {[%clk 0:00:04]} 68. Rd7+ {[%clk 0:00:05]}  Kh8 {[%clk 0:00:04]} 69. Rh6+ {[%clk 0:00:05]}  Kg8 {[%clk 0:00:04]} 70. Rxh2 {[%clk 0:00:04]}  Qc1+ {[%clk 0:00:04]} 71. Rhd2 {[%clk 0:00:04]}  Qc3+ {[%clk 0:00:04]} 72. Nd3 {[%clk 0:00:04]}  f4+ {[%clk 0:00:03]} 73. Kxf4 {[%clk 0:00:04]}  Qf6+ {[%clk 0:00:03]} 74. Kg3 {[%clk 0:00:03]}  Qg5+ {[%clk 0:00:03]} 75. Kh3 {[%clk 0:00:02]}  Qf5+ {[%clk 0:00:03]} 76. Kg2 {[%clk 0:00:02]}  Qxd7 {[%clk 0:00:04]} 77. Kf2 {[%clk 0:00:03]}  Qg7 {[%clk 0:00:04]} 78. Nf4 {[%clk 0:00:02]}  Qc3 {[%clk 0:00:05]} 79. Re2 {[%clk 0:00:03]}  Kf7 {[%clk 0:00:06]} 80. Ng2 {[%clk 0:00:02]}  Qc5+ {[%clk 0:00:06]} 81. Ne3 {[%clk 0:00:02]}  Qd4 {[%clk 0:00:06]} 82. Kg2 {[%clk 0:00:02]}  Qh4 {[%clk 0:00:06]} 83. Ng4 {[%clk 0:00:02]}  Qg5 {[%clk 0:00:06]} 84. Kf2 {[%clk 0:00:02]}  Qf4 {[%clk 0:00:07]} 85. Re4 {[%clk 0:00:02]}  Qd6 {[%clk 0:00:07]} 86. Re2 {[%clk 0:00:02]}  Qd4+ {[%clk 0:00:07]} 87. Kg2 {[%clk 0:00:03]}  Qc3 {[%clk 0:00:07]} 88. Ne5+ {[%clk 0:00:03]}  Kg7 {[%clk 0:00:07]} 89. Ng4 {[%clk 0:00:04]}  Qc1 {[%clk 0:00:07]} 90. Kf2 {[%clk 0:00:04]}  Qd1 {[%clk 0:00:06]} 91. Re3 {[%clk 0:00:04]}  a4 {[%clk 0:00:06]} 92. Re2 {[%clk 0:00:05]}  axb3 {[%clk 0:00:06]} 93. axb3 {[%clk 0:00:06]}  Qxb3 {[%clk 0:00:07]} 94. Ne5 {[%clk 0:00:06]}  Qc3 {[%clk 0:00:07]} 95. Kg3 {[%clk 0:00:05]}  b3 {[%clk 0:00:07]} 96. Ng4 {[%clk 0:00:04]}  b2 {[%clk 0:00:08]} 97. Re7+ {[%clk 0:00:03]}  Kf8 {[%clk 0:00:08]} 98. Rb7 {[%clk 0:00:03]}  Qc1 {[%clk 0:00:08]} 99. Nf2 {[%clk 0:00:03]}  b1=Q {[%clk 0:00:08]} 100. Rxb1 {[%clk 0:00:04]}  Qxb1 {[%clk 0:00:09]} 101. Ne4 {[%clk 0:00:05]}  Qb8+ {[%clk 0:00:09]} 102. f4 {[%clk 0:00:05]}  Ke7 {[%clk 0:00:09]} 103. Kg4 {[%clk 0:00:06]}  Qc8+ {[%clk 0:00:09]} 104. Kg5 {[%clk 0:00:06]}  Qc4 {[%clk 0:00:09]} 105. Ng3 {[%clk 0:00:06]}  Qg8+ {[%clk 0:00:09]} 106. Kh4 {[%clk 0:00:06]}  Kf6 {[%clk 0:00:09]} 107. Kh3 {[%clk 0:00:05]}  Qh7+ {[%clk 0:00:08]} 108. Kg2 {[%clk 0:00:05]}  Qd3 {[%clk 0:00:07]} 109. Kf2 {[%clk 0:00:05]}  Kg6 {[%clk 0:00:06]} 110. Kg2 {[%clk 0:00:05]}  Qe3 {[%clk 0:00:06]} 111. f5+ {[%clk 0:00:02]}  Kf6 {[%clk 0:00:06]} 112. Kh3 {[%clk 0:00:01]}  Kg5 {[%clk 0:00:07]} 113. Kg2 {[%clk 0:00:01]}  Kg4 {[%clk 0:00:07]} 114. Nh1 {[%clk 0:00:02]}  Qf3+ {[%clk 0:00:07]} 115. Kg1 {[%clk 0:00:02]}  Qxf5 {[%clk 0:00:07]} 116. Nf2+ {[%clk 0:00:02]}  Kf3 {[%clk 0:00:07]} 117. Nh3 {[%clk 0:00:02]}  Qg4+ {[%clk 0:00:06]} 118. Kh2 {[%clk 0:00:02]}  Qg2# {[%clk 0:00:06]} 0-1

[Event "December 5 Early 2023"]
[Site "https://www.chess.com"]
[Date "2023.12.05"]
[Round "3"]
[White "Belov, Alexei"]
[Black "Mazurkiewicz, Michal"]
[Result "0-1"]
[Board "108"]
[TimeControl "180+1"]
[WhiteFideId "4128206"]
[BlackFideId "1124943"]
[WhiteElo "2652"]
[BlackElo "2475"]
[WhiteTeam "RUS"]
[BlackTeam "POL"]
[WhiteClock "0:00:04"]
[BlackClock "0:00:13"]

1. e4 {[%clk 0:03:00]}  d6 {[%clk 0:02:56]} 2. d4 {[%clk 0:03:00]}  Nf6 {[%clk 0:02:56]} 3. Nc3 {[%clk 0:03:00]}  c6 {[%clk 0:02:56]} 4. f4 {[%clk 0:02:59]}  Qb6 {[%clk 0:02:57]} 5. Nf3 {[%clk 0:02:59]}  Bg4 {[%clk 0:02:57]} 6. Be2 {[%clk 0:02:56]}  e6 {[%clk 0:02:55]} 7. e5 {[%clk 0:02:49]}  Nd5 {[%clk 0:02:54]} 8. Nxd5 {[%clk 0:02:48]}  cxd5 {[%clk 0:02:54]} 9. c3 {[%clk 0:02:48]}  Nc6 {[%clk 0:02:55]} 10. exd6 {[%clk 0:02:29]}  Bxf3 {[%clk 0:02:47]} 11. d7+ {[%clk 0:02:27]}  Kxd7 {[%clk 0:02:47]} 12. Bxf3 {[%clk 0:02:27]}  g6 {[%clk 0:02:47]} 13. O-O {[%clk 0:02:25]}  Bd6 {[%clk 0:02:46]} 14. a4 {[%clk 0:02:21]}  a5 {[%clk 0:02:45]} 15. Be2 {[%clk 0:02:20]}  h5 {[%clk 0:02:42]} 16. Bb5 {[%clk 0:02:17]}  Ke7 {[%clk 0:02:42]} 17. Qe2 {[%clk 0:02:14]}  Kf8 {[%clk 0:02:40]} 18. Qf3 {[%clk 0:02:03]}  Ne7 {[%clk 0:02:34]} 19. Be3 {[%clk 0:01:55]}  Nf5 {[%clk 0:02:31]} 20. Bf2 {[%clk 0:01:52]}  Qc7 {[%clk 0:02:23]} 21. g3 {[%clk 0:01:50]}  g5 {[%clk 0:01:11]} 22. Bd3 {[%clk 0:00:55]}  g4 {[%clk 0:00:51]} 23. Qe2 {[%clk 0:00:53]}  h4 {[%clk 0:00:39]} 24. Bxf5 {[%clk 0:00:32]}  exf5 {[%clk 0:00:40]} 25. Qd3 {[%clk 0:00:26]}  Qd7 {[%clk 0:00:36]} 26. gxh4 {[%clk 0:00:25]}  Re8 {[%clk 0:00:31]} 27. Bg3 {[%clk 0:00:24]}  Re4 {[%clk 0:00:31]} 28. Rae1 {[%clk 0:00:24]}  Be7 {[%clk 0:00:31]} 29. Rxe4 {[%clk 0:00:21]}  dxe4 {[%clk 0:00:31]} 30. Qb5 {[%clk 0:00:20]}  Qe6 {[%clk 0:00:23]} 31. d5 {[%clk 0:00:17]}  Qh6 {[%clk 0:00:21]} 32. Qxb7 {[%clk 0:00:09]}  Bxh4 {[%clk 0:00:21]} 33. Qb8+ {[%clk 0:00:09]}  Kg7 {[%clk 0:00:21]} 34. Qe5+ {[%clk 0:00:09]}  Kg6 {[%clk 0:00:20]} 35. Qd6+ {[%clk 0:00:08]}  f6 {[%clk 0:00:21]} 36. Kf2 {[%clk 0:00:07]}  Bxg3+ {[%clk 0:00:21]} 37. hxg3 {[%clk 0:00:07]}  Qh2+ {[%clk 0:00:21]} 38. Ke3 {[%clk 0:00:08]}  Qxg3+ {[%clk 0:00:21]} 39. Kd4 {[%clk 0:00:08]}  Qd3+ {[%clk 0:00:20]} 40. Kc5 {[%clk 0:00:08]}  Rc8+ {[%clk 0:00:19]} 41. Kb6 {[%clk 0:00:07]}  Qxf1 {[%clk 0:00:19]} 42. Qd7 {[%clk 0:00:08]}  Qc4 {[%clk 0:00:16]} 43. b3 {[%clk 0:00:06]}  Qc5+ {[%clk 0:00:16]} 44. Kb7 {[%clk 0:00:06]}  Rf8 {[%clk 0:00:13]} 45. Qc6 {[%clk 0:00:05]}  Rf7+ {[%clk 0:00:12]} 46. Ka6 {[%clk 0:00:04]}  Ra7# {[%clk 0:00:13]} 0-1

[Event "December 5 Early 2023"]
[Site "https://www.chess.com"]
[Date "2023.12.05"]
[Round "3"]
[White "Manukyan, Sargis V."]
[Black "Ovetchkin, Roman"]
[Result "1/2-1/2"]
[Board "110"]
[TimeControl "180+1"]
[WhiteFideId "13303465"]
[BlackFideId "4119991"]
[WhiteElo "2472"]
[BlackElo "2649"]
[WhiteTeam "ARM"]
[BlackTeam "RUS"]
[WhiteClock "0:00:09"]
[BlackClock "0:00:03"]

1. c4 {[%clk 0:02:39]}  Nf6 {[%clk 0:02:52]} 2. Nc3 {[%clk 0:02:39]}  g6 {[%clk 0:02:51]} 3. e4 {[%clk 0:02:39]}  d6 {[%clk 0:02:50]} 4. d4 {[%clk 0:02:39]}  Bg7 {[%clk 0:02:51]} 5. Be2 {[%clk 0:02:40]}  O-O {[%clk 0:02:50]} 6. Nf3 {[%clk 0:02:41]}  e5 {[%clk 0:02:49]} 7. O-O {[%clk 0:02:41]}  Nc6 {[%clk 0:02:49]} 8. d5 {[%clk 0:02:41]}  Ne7 {[%clk 0:02:49]} 9. Ne1 {[%clk 0:02:42]}  Nd7 {[%clk 0:02:49]} 10. Nd3 {[%clk 0:02:43]}  f5 {[%clk 0:02:48]} 11. Bd2 {[%clk 0:02:44]}  Nf6 {[%clk 0:02:45]} 12. f3 {[%clk 0:02:43]}  f4 {[%clk 0:02:45]} 13. c5 {[%clk 0:02:44]}  g5 {[%clk 0:02:44]} 14. cxd6 {[%clk 0:02:45]}  cxd6 {[%clk 0:02:43]} 15. Nf2 {[%clk 0:02:46]}  h5 {[%clk 0:02:39]} 16. h3 {[%clk 0:02:46]}  Rf7 {[%clk 0:02:38]} 17. Qc2 {[%clk 0:02:46]}  Ng6 {[%clk 0:02:38]} 18. Rfc1 {[%clk 0:02:47]}  a6 {[%clk 0:02:30]} 19. a4 {[%clk 0:02:45]}  Bh6 {[%clk 0:02:21]} 20. a5 {[%clk 0:02:43]}  g4 {[%clk 0:02:17]} 21. hxg4 {[%clk 0:02:43]}  hxg4 {[%clk 0:02:17]} 22. fxg4 {[%clk 0:02:44]}  Qf8 {[%clk 0:01:33]} 23. Na4 {[%clk 0:02:41]}  f3 {[%clk 0:01:34]} 24. Bxf3 {[%clk 0:02:38]}  Bxd2 {[%clk 0:01:29]} 25. Qxd2 {[%clk 0:02:39]}  Nh7 {[%clk 0:01:26]} 26. Nb6 {[%clk 0:02:34]}  Rb8 {[%clk 0:01:26]} 27. Nxc8 {[%clk 0:02:33]}  Rxc8 {[%clk 0:01:26]} 28. Rxc8 {[%clk 0:02:33]}  Qxc8 {[%clk 0:01:26]} 29. Rc1 {[%clk 0:02:28]}  Rc7 {[%clk 0:01:26]} 30. Rxc7 {[%clk 0:02:26]}  Qxc7 {[%clk 0:01:26]} 31. Qc3 {[%clk 0:02:25]}  Qf7 {[%clk 0:01:22]} 32. Qc8+ {[%clk 0:02:19]}  Kg7 {[%clk 0:01:22]} 33. Nh3 {[%clk 0:02:06]}  Nf4 {[%clk 0:01:12]} 34. Nxf4 {[%clk 0:02:03]}  exf4 {[%clk 0:01:09]} 35. Qf5 {[%clk 0:01:51]}  Qf6 {[%clk 0:01:09]} 36. e5 {[%clk 0:01:41]}  dxe5 {[%clk 0:00:58]} 37. Qd7+ {[%clk 0:01:33]}  Kh6 {[%clk 0:00:57]} 38. d6 {[%clk 0:01:25]}  e4 {[%clk 0:00:53]} 39. Bxe4 {[%clk 0:01:21]}  Qd4+ {[%clk 0:00:53]} 40. Kh2 {[%clk 0:01:16]}  Qxe4 {[%clk 0:00:53]} 41. Qd8 {[%clk 0:01:02]}  Qd3 {[%clk 0:00:47]} 42. Qh4+ {[%clk 0:00:49]}  Kg7 {[%clk 0:00:44]} 43. Qe7+ {[%clk 0:00:48]}  Kg6 {[%clk 0:00:44]} 44. d7 {[%clk 0:00:48]}  Qg3+ {[%clk 0:00:41]} 45. Kg1 {[%clk 0:00:44]}  f3 {[%clk 0:00:37]} 46. Qe4+ {[%clk 0:00:44]}  Kg7 {[%clk 0:00:29]} 47. Qxf3 {[%clk 0:00:37]}  Qe1+ {[%clk 0:00:29]} 48. Kh2 {[%clk 0:00:35]}  Qh4+ {[%clk 0:00:26]} 49. Qh3 {[%clk 0:00:30]}  Qd8 {[%clk 0:00:26]} 50. Qc3+ {[%clk 0:00:27]}  Kg6 {[%clk 0:00:20]} 51. Qd3+ {[%clk 0:00:20]}  Kg7 {[%clk 0:00:20]} 52. Qd4+ {[%clk 0:00:21]}  Kf7 {[%clk 0:00:17]} 53. Qd5+ {[%clk 0:00:19]}  Ke7 {[%clk 0:00:08]} 54. Qe4+ {[%clk 0:00:16]}  Kxd7 {[%clk 0:00:04]} 55. Qxh7+ {[%clk 0:00:16]}  Kc6 {[%clk 0:00:04]} 56. Qe4+ {[%clk 0:00:14]}  Kb5 {[%clk 0:00:03]} 57. Qxb7+ {[%clk 0:00:12]}  Kxa5 {[%clk 0:00:04]} 58. Qe4 {[%clk 0:00:11]}  Qh4+ {[%clk 0:00:03]} 59. Kg1 {[%clk 0:00:11]}  Kb5 {[%clk 0:00:03]} 60. b3 {[%clk 0:00:10]}  Qg3 {[%clk 0:00:02]} 61. Qc4+ {[%clk 0:00:09]}  Kb6 {[%clk 0:00:03]} 62. Qd4+ {[%clk 0:00:09]}  Kb5 {[%clk 0:00:03]} 63. Qc4+ {[%clk 0:00:08]}  Kb6 {[%clk 0:00:03]} 64. Qe6+ {[%clk 0:00:09]}  Kb5 {[%clk 0:00:03]} 65. Qd5+ {[%clk 0:00:09]}  Kb6 {[%clk 0:00:04]} 66. Kf1 {[%clk 0:00:09]}  Qe3 {[%clk 0:00:03]} 67. Qd6+ {[%clk 0:00:07]}  Kb5 {[%clk 0:00:03]} 68. Qd5+ {[%clk 0:00:08]}  Kb6 {[%clk 0:00:03]} 69. g5 {[%clk 0:00:08]}  Qc1+ {[%clk 0:00:03]} 70. Kf2 {[%clk 0:00:08]}  Qf4+ {[%clk 0:00:04]} 71. Ke2 {[%clk 0:00:09]}  Qg4+ {[%clk 0:00:04]} 72. Kd3 {[%clk 0:00:08]}  Qg3+ {[%clk 0:00:04]} 73. Ke4 {[%clk 0:00:09]}  Qg4+ {[%clk 0:00:04]} 74. Ke5 {[%clk 0:00:09]}  Qxg5+ {[%clk 0:00:04]} 75. Kd6 {[%clk 0:00:10]}  Qd8+ {[%clk 0:00:04]} 76. Ke5 {[%clk 0:00:10]}  Qg5+ {[%clk 0:00:04]} 77. Kd4 {[%clk 0:00:10]}  Qd2+ {[%clk 0:00:04]} 78. Kc4 {[%clk 0:00:09]}  Qe2+ {[%clk 0:00:02]} 79. Kb4 {[%clk 0:00:08]}  Qe1+ {[%clk 0:00:02]} 80. Ka3 {[%clk 0:00:08]}  Qa1+ {[%clk 0:00:02]} 81. Kb4 {[%clk 0:00:08]}  Qe1+ {[%clk 0:00:03]} 82. Kc4 {[%clk 0:00:08]}  Qe2+ {[%clk 0:00:03]} 83. Kd4 {[%clk 0:00:09]}  Qd2+ {[%clk 0:00:03]} 84. Ke5 {[%clk 0:00:09]}  Qg5+ {[%clk 0:00:03]} 1/2-1/2

[Event "December 5 Early 2023"]
[Site "https://www.chess.com"]
[Date "2023.12.05"]
[Round "3"]
[White "Kuzhylnyi, Oleksandr"]
[Black "Reprintsev, Alexander"]
[Result "1/2-1/2"]
[Board "111"]
[TimeControl "180+1"]
[WhiteFideId "34110500"]
[BlackFideId "14100541"]
[WhiteElo "2649"]
[BlackElo "2467"]
[WhiteTeam "UKR"]
[BlackTeam "UKR"]
[WhiteClock "0:00:09"]
[BlackClock "0:00:18"]

1. c3 {[%clk 0:03:00]}  b6 {[%clk 0:02:57]} 2. e4 {[%clk 0:02:59]}  Bb7 {[%clk 0:02:56]} 3. Qc2 {[%clk 0:02:58]}  c5 {[%clk 0:02:54]} 4. Nf3 {[%clk 0:02:58]}  Nf6 {[%clk 0:02:52]} 5. d3 {[%clk 0:02:54]}  d5 {[%clk 0:02:50]} 6. Nbd2 {[%clk 0:02:54]}  Nc6 {[%clk 0:02:45]} 7. g3 {[%clk 0:02:42]}  e5 {[%clk 0:02:43]} 8. Bg2 {[%clk 0:02:42]}  Be7 {[%clk 0:02:42]} 9. O-O {[%clk 0:02:42]}  O-O {[%clk 0:02:42]} 10. Re1 {[%clk 0:02:40]}  Re8 {[%clk 0:02:41]} 11. exd5 {[%clk 0:02:38]}  Nxd5 {[%clk 0:02:39]} 12. Nxe5 {[%clk 0:02:28]}  Bf6 {[%clk 0:02:24]} 13. Nef3 {[%clk 0:02:27]}  Rxe1+ {[%clk 0:02:23]} 14. Nxe1 {[%clk 0:02:28]}  Qd7 {[%clk 0:02:10]} 15. Ne4 {[%clk 0:02:10]}  Be7 {[%clk 0:02:05]} 16. Nf3 {[%clk 0:02:04]}  Rd8 {[%clk 0:02:04]} 17. Bg5 {[%clk 0:01:55]}  f6 {[%clk 0:02:03]} 18. Bd2 {[%clk 0:01:23]}  f5 {[%clk 0:02:02]} 19. Neg5 {[%clk 0:01:21]}  h6 {[%clk 0:02:01]} 20. Nh3 {[%clk 0:01:20]}  g5 {[%clk 0:02:01]} 21. Ne1 {[%clk 0:00:59]}  Ne5 {[%clk 0:01:38]} 22. f4 {[%clk 0:00:35]}  gxf4 {[%clk 0:01:25]} 23. Nxf4 {[%clk 0:00:35]}  Nxf4 {[%clk 0:01:22]} 24. Bxf4 {[%clk 0:00:36]}  Bxg2 {[%clk 0:01:18]} 25. Qxg2 {[%clk 0:00:22]}  Nxd3 {[%clk 0:01:18]} 26. Rd1 {[%clk 0:00:17]}  c4 {[%clk 0:01:17]} 27. Nxd3 {[%clk 0:00:15]}  cxd3 {[%clk 0:01:17]} 28. Bxh6 {[%clk 0:00:16]}  Bc5+ {[%clk 0:01:17]} 29. Kh1 {[%clk 0:00:16]}  Qe6 {[%clk 0:01:15]} 30. Bf4 {[%clk 0:00:15]}  Qxa2 {[%clk 0:01:15]} 31. b4 {[%clk 0:00:13]}  Qxg2+ {[%clk 0:01:13]} 32. Kxg2 {[%clk 0:00:14]}  Be7 {[%clk 0:01:12]} 33. b5 {[%clk 0:00:13]}  Kf7 {[%clk 0:01:07]} 34. Kf3 {[%clk 0:00:13]}  Ke6 {[%clk 0:01:06]} 35. Be3 {[%clk 0:00:12]}  Bf6 {[%clk 0:01:00]} 36. c4 {[%clk 0:00:12]}  Bc3 {[%clk 0:00:59]} 37. h4 {[%clk 0:00:11]}  d2 {[%clk 0:00:54]} 38. Ke2 {[%clk 0:00:08]}  Rc8 {[%clk 0:00:52]} 39. Kd3 {[%clk 0:00:07]}  Be5 {[%clk 0:00:49]} 40. Bxd2 {[%clk 0:00:05]}  Bxg3 {[%clk 0:00:48]} 41. h5 {[%clk 0:00:05]}  f4 {[%clk 0:00:46]} 42. h6 {[%clk 0:00:06]}  Rh8 {[%clk 0:00:45]} 43. Rh1 {[%clk 0:00:04]}  Kf5 {[%clk 0:00:45]} 44. Bc3 {[%clk 0:00:03]}  Rh7 {[%clk 0:00:44]} 45. Bg7 {[%clk 0:00:03]}  f3 {[%clk 0:00:32]} 46. Ke3 {[%clk 0:00:03]}  f2 {[%clk 0:00:31]} 47. Kf3 {[%clk 0:00:03]}  Be5 {[%clk 0:00:31]} 48. Kxf2 {[%clk 0:00:01]}  Bxg7 {[%clk 0:00:28]} 49. hxg7 {[%clk 0:00:02]}  Rxg7 {[%clk 0:00:28]} 50. Rh4 {[%clk 0:00:03]}  Re7 {[%clk 0:00:26]} 51. Kf3 {[%clk 0:00:03]}  Re1 {[%clk 0:00:26]} 52. Rd4 {[%clk 0:00:03]}  Ke6 {[%clk 0:00:24]} 53. Re4+ {[%clk 0:00:03]}  Rxe4 {[%clk 0:00:23]} 54. Kxe4 {[%clk 0:00:04]}  Kd6 {[%clk 0:00:19]} 55. Kd4 {[%clk 0:00:05]}  Ke6 {[%clk 0:00:19]} 56. c5 {[%clk 0:00:05]}  bxc5+ {[%clk 0:00:19]} 57. Kxc5 {[%clk 0:00:06]}  Kd7 {[%clk 0:00:19]} 58. Kb4 {[%clk 0:00:06]}  Kc7 {[%clk 0:00:19]} 59. Ka5 {[%clk 0:00:07]}  Kb7 {[%clk 0:00:19]} 60. Kb4 {[%clk 0:00:08]}  a6 {[%clk 0:00:18]} 61. bxa6+ {[%clk 0:00:09]}  Kxa6 {[%clk 0:00:18]} 1/2-1/2